[Event "*** Titled Tuesday Blitz"]
[Site "Chess.com"]
[Date "2020.10.20"]
[Round "5"]
[White "mishanick"]
[Black "vladislavkovalev"]
[Result "1-0"]
[WhiteElo "3000"]
[BlackElo "2848"]
[TimeControl "180+1"]
[EndTime "10:57:53 PDT"]
[Termination "mishanick won by resignation"]

1. d4 {[%clk 0:03:00.9]} 1... Nf6 {[%clk 0:02:57.9]} 2. c4 {[%clk 0:03:00.5]}
2... g6 {[%clk 0:02:56.6]} 3. Nc3 {[%clk 0:03:00.4]} 3... Bg7 {[%clk 0:02:57.3]}
4. e4 {[%clk 0:03:00.4]} 4... d6 {[%clk 0:02:57.9]} 5. Be2 {[%clk 0:03:01]} 5...
O-O {[%clk 0:02:58.6]} 6. Be3 {[%clk 0:03:01.6]} 6... e5 {[%clk 0:02:57.7]} 7.
d5 {[%clk 0:03:01.9]} 7... a5 {[%clk 0:02:54.2]} 8. g4 {[%clk 0:02:59.7]} 8...
Na6 {[%clk 0:02:54.8]} 9. g5 {[%clk 0:02:59.5]} 9... Nd7 {[%clk 0:02:53.8]} 10.
h4 {[%clk 0:03:00]} 10... Ndc5 {[%clk 0:02:40.3]} 11. Nf3 {[%clk 0:02:57.2]}
11... Bg4 {[%clk 0:02:37.5]} 12. Nh2 {[%clk 0:02:35.2]} 12... Bxe2 {[%clk
0:02:28.6]} 13. Qxe2 {[%clk 0:02:36.1]} 13... Nb4 {[%clk 0:02:26.4]} 14. Rd1
{[%clk 0:02:34.8]} 14... a4 {[%clk 0:02:08.1]} 15. Bxc5 {[%clk 0:02:21]} 15...
dxc5 {[%clk 0:02:08.2]} 16. a3 {[%clk 0:02:21.7]} 16... Na6 {[%clk 0:02:04.1]}
17. Nxa4 {[%clk 0:02:22.1]} 17... f5 {[%clk 0:01:45]} 18. Nc3 {[%clk 0:02:15.9]}
18... Nb8 {[%clk 0:01:33.4]} 19. Nf3 {[%clk 0:02:07]} 19... Nd7 {[%clk
0:01:29.1]} 20. h5 {[%clk 0:02:06.9]} 20... Nb6 {[%clk 0:01:03.7]} 21. hxg6
{[%clk 0:02:04.6]} 21... hxg6 {[%clk 0:01:03.9]} 22. Qd3 {[%clk 0:01:29.5]}
22... Nc8 {[%clk 0:00:59.6]} 23. Qe3 {[%clk 0:01:19.5]} 23... Nd6 {[%clk
0:00:46.7]} 24. Nh4 {[%clk 0:01:19.4]} 24... fxe4 {[%clk 0:00:27.7]} 25. Nxe4
{[%clk 0:01:13]} 25... Nxe4 {[%clk 0:00:23.4]} 26. Qxe4 {[%clk 0:01:12.8]} 26...
Qxg5 {[%clk 0:00:21.3]} 27. Qxg6 {[%clk 0:00:31.9]} 27... Qxg6 {[%clk
0:00:20.2]} 28. Nxg6 {[%clk 0:00:31.4]} 28... Rf6 {[%clk 0:00:20.1]} 29. Rg1
{[%clk 0:00:28.3]} 29... Re8 {[%clk 0:00:17.6]} 30. Rd3 {[%clk 0:00:28.3]} 30...
e4 {[%clk 0:00:17.8]} 31. Rdg3 {[%clk 0:00:28]} 31... Rf7 {[%clk 0:00:10.7]} 32.
Nf4 {[%clk 0:00:27.2]} 32... Kh7 {[%clk 0:00:04.5]} 33. Ne6 {[%clk 0:00:25.1]}
33... Bh6 {[%clk 0:00:05.1]} 34. Rh3 {[%clk 0:00:24.6]} 34... Rf6 {[%clk
0:00:04.6]} 35. Rg4 {[%clk 0:00:22.6]} 35... Rg8 {[%clk 0:00:03.9]} 36. Rxe4
{[%clk 0:00:18.5]} 36... Rg1+ {[%clk 0:00:04.1]} 37. Ke2 {[%clk 0:00:19.1]}
37... Kg6 {[%clk 0:00:05]} 38. Rg3+ {[%clk 0:00:18.6]} 38... Rxg3 {[%clk
0:00:04.9]} 39. fxg3 {[%clk 0:00:19.5]} 39... Bc1 {[%clk 0:00:05.8]} 40. b3
{[%clk 0:00:19.2]} 40... Bxa3 {[%clk 0:00:05.7]} 41. Nxc7 {[%clk 0:00:19.8]}
41... Rf8 {[%clk 0:00:03.2]} 42. Ne6 {[%clk 0:00:19.5]} 42... Rh8 {[%clk
0:00:03.9]} 43. Kf3 {[%clk 0:00:18.9]} 43... Kf6 {[%clk 0:00:04.1]} 44. d6
{[%clk 0:00:18.6]} 44... Rh7 {[%clk 0:00:03.3]} 45. Nf4 {[%clk 0:00:14.2]} 45...
Rd7 {[%clk 0:00:03.3]} 46. Re6+ {[%clk 0:00:14.7]} 46... Kf5 {[%clk 0:00:03.5]}
47. g4+ {[%clk 0:00:14.7]} 47... Kg5 {[%clk 0:00:04.1]} 48. Rg6+ {[%clk
0:00:15]} 48... Kh4 {[%clk 0:00:04.8]} 49. Ke4 {[%clk 0:00:14.6]} 49... Bc1
{[%clk 0:00:03.7]} 50. Nd3 {[%clk 0:00:15.1]} 50... Bg5 {[%clk 0:00:03.3]} 51.
Ne5 {[%clk 0:00:15.3]} 1-0

[Event "*** Titled Tuesday Blitz"]
[Site "Chess.com"]
[Date "2020.10.20"]
[Round "5"]
[White "Srisshhhtea"]
[Black "Natalya_Buksa"]
[Result "0-1"]
[WhiteElo "2253"]
[BlackElo "2553"]
[TimeControl "180+1"]
[EndTime "10:57:53 PDT"]
[Termination "Natalya_Buksa won by resignation"]

1. d4 {[%clk 0:03:00.9]} 1... d5 {[%clk 0:02:55.5]} 2. c4 {[%clk 0:02:58.3]}
2... e6 {[%clk 0:02:55.7]} 3. Nf3 {[%clk 0:02:56.1]} 3... Nf6 {[%clk 0:02:54.6]}
4. g3 {[%clk 0:02:55.1]} 4... Be7 {[%clk 0:02:53.6]} 5. Bg2 {[%clk 0:02:54.6]}
5... O-O {[%clk 0:02:54.2]} 6. O-O {[%clk 0:02:53.2]} 6... dxc4 {[%clk
0:02:54.8]} 7. Nbd2 {[%clk 0:02:40.9]} 7... c5 {[%clk 0:02:52.3]} 8. dxc5 {[%clk
0:02:33.3]} 8... Bxc5 {[%clk 0:02:51.4]} 9. Nxc4 {[%clk 0:02:33.8]} 9... Qe7
{[%clk 0:02:51.7]} 10. Bf4 {[%clk 0:02:19]} 10... Rd8 {[%clk 0:02:48.6]} 11. Qc2
{[%clk 0:02:11.1]} 11... Nc6 {[%clk 0:02:48.9]} 12. Rad1 {[%clk 0:02:08.2]}
12... Nd5 {[%clk 0:02:47.7]} 13. Bg5 {[%clk 0:02:05.8]} 13... f6 {[%clk
0:02:47.6]} 14. Bc1 {[%clk 0:02:04.6]} 14... Bd7 {[%clk 0:02:33.5]} 15. a3
{[%clk 0:02:03]} 15... a5 {[%clk 0:02:27.5]} 16. e4 {[%clk 0:01:50.6]} 16... Nb6
{[%clk 0:02:24.7]} 17. e5 {[%clk 0:01:44.5]} 17... Nxc4 {[%clk 0:01:49.8]} 18.
exf6 {[%clk 0:01:42.8]} 18... gxf6 {[%clk 0:01:42.9]} 19. Qxc4 {[%clk 0:01:41]}
19... b5 {[%clk 0:01:39]} 20. Qxb5 {[%clk 0:01:12.3]} 20... Nd4 {[%clk
0:01:38.9]} 21. Qb7 {[%clk 0:01:01.7]} 21... Ne2+ {[%clk 0:01:21.2]} 22. Kh1
{[%clk 0:00:59.5]} 22... Nxc1 {[%clk 0:01:21.6]} 23. Rxc1 {[%clk 0:00:52.1]}
23... Rab8 {[%clk 0:01:22.1]} 24. Qc7 {[%clk 0:00:33.2]} 24... Rdc8 {[%clk
0:01:21.5]} 25. Qxa5 {[%clk 0:00:30.1]} 25... Rxb2 {[%clk 0:01:19.5]} 26. Kg1
{[%clk 0:00:17.7]} 26... Bb5 {[%clk 0:01:03.7]} 27. Qc3 {[%clk 0:00:15.5]} 27...
Re2 {[%clk 0:00:51.4]} 28. Kh1 {[%clk 0:00:12.6]} 28... Ba6 {[%clk 0:00:47.2]}
29. Nd4 {[%clk 0:00:12.3]} 29... Ra2 {[%clk 0:00:39.8]} 30. Nc6 {[%clk
0:00:11.9]} 30... Rxc6 {[%clk 0:00:31.8]} 31. Bxc6 {[%clk 0:00:12.8]} 31... Bxf1
{[%clk 0:00:32.2]} 32. Qxc5 {[%clk 0:00:12]} 32... Qxc5 {[%clk 0:00:32.4]} 33.
Rxc5 {[%clk 0:00:12.9]} 33... Ra1 {[%clk 0:00:33]} 34. h4 {[%clk 0:00:11.8]}
34... Kf7 {[%clk 0:00:29.1]} 35. Kh2 {[%clk 0:00:11.1]} 35... Ke7 {[%clk
0:00:29.6]} 36. Bf3 {[%clk 0:00:10.9]} 36... Rxa3 {[%clk 0:00:28.9]} 37. Bg2
{[%clk 0:00:11.2]} 37... Bxg2 {[%clk 0:00:26.7]} 38. Kxg2 {[%clk 0:00:12.1]}
38... Kd6 {[%clk 0:00:27.3]} 39. Rh5 {[%clk 0:00:11.9]} 39... Ra7 {[%clk
0:00:27.7]} 40. Rh6 {[%clk 0:00:12.2]} 40... Ke5 {[%clk 0:00:27.5]} 41. Rh5+
{[%clk 0:00:11.5]} 41... f5 {[%clk 0:00:27.9]} 42. Rg5 {[%clk 0:00:11.2]} 42...
Re7 {[%clk 0:00:27.5]} 43. Rg8 {[%clk 0:00:11.3]} 43... Ke4 {[%clk 0:00:27.3]}
44. Ra8 {[%clk 0:00:11.7]} 44... Rd7 {[%clk 0:00:26]} 45. Ra4+ {[%clk
0:00:12.2]} 45... Ke5 {[%clk 0:00:26.3]} 46. Ra7 {[%clk 0:00:12.6]} 46... Rxa7
{[%clk 0:00:25.1]} 47. Kh3 {[%clk 0:00:11.6]} 47... f4 {[%clk 0:00:24]} 48. g4
{[%clk 0:00:11.1]} 48... Ra3+ {[%clk 0:00:23.3]} 49. Kg2 {[%clk 0:00:11.6]}
49... Ke4 {[%clk 0:00:23.6]} 50. g5 {[%clk 0:00:10.6]} 50... f3+ {[%clk
0:00:23.9]} 51. Kg3 {[%clk 0:00:10.9]} 51... Ra1 {[%clk 0:00:24.5]} 52. h5
{[%clk 0:00:10.9]} 52... Rg1+ {[%clk 0:00:25]} 53. Kh3 {[%clk 0:00:11]} 53...
Rxg5 {[%clk 0:00:23.8]} 54. h6 {[%clk 0:00:11.3]} 54... Rg6 {[%clk 0:00:23.6]}
55. Kh4 {[%clk 0:00:12.1]} 55... Kd3 {[%clk 0:00:24.2]} 56. Kh5 {[%clk
0:00:11.8]} 56... Ke2 {[%clk 0:00:25.1]} 57. Kh4 {[%clk 0:00:12.1]} 57... Kxf2
{[%clk 0:00:26]} 58. Kh5 {[%clk 0:00:13]} 58... Ke3 {[%clk 0:00:26.3]} 59. Kh4
{[%clk 0:00:13.9]} 0-1

[Event "*** Titled Tuesday Blitz"]
[Site "Chess.com"]
[Date "2020.10.20"]
[Round "5"]
[White "UmarovSabir"]
[Black "vaishali2001"]
[Result "0-1"]
[WhiteElo "2348"]
[BlackElo "2585"]
[TimeControl "180+1"]
[EndTime "10:57:54 PDT"]
[Termination "vaishali2001 won by checkmate"]

1. e4 {[%clk 0:02:59]} 1... c5 {[%clk 0:02:59.5]} 2. a3 {[%clk 0:02:52.4]} 2...
g6 {[%clk 0:02:50.4]} 3. Nf3 {[%clk 0:02:50.1]} 3... Bg7 {[%clk 0:02:50.5]} 4.
Bc4 {[%clk 0:02:48.5]} 4... Nc6 {[%clk 0:02:46.1]} 5. O-O {[%clk 0:02:47]} 5...
e6 {[%clk 0:02:46.3]} 6. Re1 {[%clk 0:02:44.6]} 6... Nge7 {[%clk 0:02:46.3]} 7.
Nc3 {[%clk 0:02:35.2]} 7... O-O {[%clk 0:02:43.7]} 8. d3 {[%clk 0:02:21.5]} 8...
d5 {[%clk 0:02:32.9]} 9. Ba2 {[%clk 0:02:19.8]} 9... b6 {[%clk 0:02:20]} 10. Bg5
{[%clk 0:02:09.8]} 10... d4 {[%clk 0:02:17.3]} 11. Ne2 {[%clk 0:01:59.5]} 11...
h6 {[%clk 0:02:15.8]} 12. Bd2 {[%clk 0:01:56.4]} 12... e5 {[%clk 0:02:13.2]} 13.
h3 {[%clk 0:01:53.2]} 13... Kh8 {[%clk 0:02:10.2]} 14. Ng3 {[%clk 0:01:50.7]}
14... Qd6 {[%clk 0:02:01.8]} 15. Qc1 {[%clk 0:01:36.3]} 15... Kh7 {[%clk
0:01:59.2]} 16. Nh2 {[%clk 0:01:36]} 16... f5 {[%clk 0:01:53.6]} 17. exf5 {[%clk
0:01:31.3]} 17... gxf5 {[%clk 0:01:54.5]} 18. Nh5 {[%clk 0:01:28.9]} 18... Qg6
{[%clk 0:01:41.7]} 19. Nxg7 {[%clk 0:01:27.6]} 19... Qxg7 {[%clk 0:01:42.6]} 20.
Kh1 {[%clk 0:00:53.9]} 20... Bb7 {[%clk 0:01:27.3]} 21. Rg1 {[%clk 0:00:49.2]}
21... Rf6 {[%clk 0:01:25.8]} 22. Qd1 {[%clk 0:00:43.5]} 22... Rg6 {[%clk
0:01:23.1]} 23. f3 {[%clk 0:00:38.5]} 23... f4 {[%clk 0:01:12.4]} 24. Qe2 {[%clk
0:00:37.5]} 24... Nf5 {[%clk 0:01:12]} 25. Nf1 {[%clk 0:00:33.1]} 25... Nce7
{[%clk 0:01:08]} 26. Qf2 {[%clk 0:00:29.5]} 26... Rf8 {[%clk 0:00:55.6]} 27. Re1
{[%clk 0:00:27.9]} 27... Qf6 {[%clk 0:00:53.8]} 28. Re4 {[%clk 0:00:26.8]} 28...
a5 {[%clk 0:00:35.9]} 29. Qe2 {[%clk 0:00:22.2]} 29... Rg5 {[%clk 0:00:24.6]}
30. b4 {[%clk 0:00:19.4]} 30... axb4 {[%clk 0:00:23.5]} 31. axb4 {[%clk
0:00:18.9]} 31... Ng6 {[%clk 0:00:24.2]} 32. bxc5 {[%clk 0:00:17.9]} 32... bxc5
{[%clk 0:00:24.1]} 33. Be1 {[%clk 0:00:12.3]} 33... Rh5 {[%clk 0:00:22.7]} 34.
Kh2 {[%clk 0:00:11.2]} 34... Bc6 {[%clk 0:00:17]} 35. Bc4 {[%clk 0:00:10.2]}
35... Ra8 {[%clk 0:00:16.3]} 36. Bf2 {[%clk 0:00:09.1]} 36... Ra1 {[%clk
0:00:16.2]} 37. Nd2 {[%clk 0:00:09.2]} 37... Ra7 {[%clk 0:00:14.7]} 38. Nf1
{[%clk 0:00:08.5]} 38... Rg7 {[%clk 0:00:14.4]} 39. Bb3 {[%clk 0:00:07.9]} 39...
Ne3 {[%clk 0:00:11.9]} 40. Bxe3 {[%clk 0:00:06.7]} 40... fxe3 {[%clk 0:00:11.1]}
41. Rg4 {[%clk 0:00:06]} 41... Nf4 {[%clk 0:00:10.2]} 42. Rxg7+ {[%clk
0:00:05.1]} 42... Qxg7 {[%clk 0:00:11.1]} 43. Qe1 {[%clk 0:00:05.1]} 43... Bd7
{[%clk 0:00:07.8]} 44. Bc4 {[%clk 0:00:02]} 44... Bxh3 {[%clk 0:00:06.9]} 45. g4
{[%clk 0:00:02.1]} 45... Bxg4+ {[%clk 0:00:06.8]} 46. Kg3 {[%clk 0:00:02.1]}
46... Rh3# {[%clk 0:00:07.2]} 0-1

[Event "*** Titled Tuesday Blitz"]
[Site "Chess.com"]
[Date "2020.10.20"]
[Round "5"]
[White "Astaneh"]
[Black "MF1966Idrisov"]
[Result "1-0"]
[WhiteElo "2521"]
[BlackElo "2339"]
[TimeControl "180+1"]
[EndTime "10:57:57 PDT"]
[Termination "Astaneh won on time"]

1. e4 {[%clk 0:03:00.9]} 1... c5 {[%clk 0:02:57.1]} 2. Nf3 {[%clk 0:03:01.1]}
2... Nc6 {[%clk 0:02:57]} 3. c3 {[%clk 0:03:00.3]} 3... d5 {[%clk 0:02:54.8]} 4.
exd5 {[%clk 0:02:57.3]} 4... Qxd5 {[%clk 0:02:54.6]} 5. d4 {[%clk 0:02:58.2]}
5... cxd4 {[%clk 0:02:54.4]} 6. cxd4 {[%clk 0:02:57.3]} 6... e6 {[%clk
0:02:52.5]} 7. Nc3 {[%clk 0:02:57.4]} 7... Bb4 {[%clk 0:02:51.4]} 8. Bd3 {[%clk
0:02:56.8]} 8... Nf6 {[%clk 0:02:50.6]} 9. O-O {[%clk 0:02:56.3]} 9... Bxc3
{[%clk 0:02:45.8]} 10. bxc3 {[%clk 0:02:57.2]} 10... O-O {[%clk 0:02:44.2]} 11.
Re1 {[%clk 0:02:48.7]} 11... b6 {[%clk 0:02:23.5]} 12. Bg5 {[%clk 0:02:48.3]}
12... Bb7 {[%clk 0:02:20.2]} 13. c4 {[%clk 0:02:41.5]} 13... Qd7 {[%clk
0:02:16.7]} 14. d5 {[%clk 0:02:40.8]} 14... exd5 {[%clk 0:01:54.7]} 15. Bxf6
{[%clk 0:02:40.3]} 15... gxf6 {[%clk 0:01:53.4]} 16. Nh4 {[%clk 0:02:30.9]}
16... Ne5 {[%clk 0:01:43.8]} 17. Bxh7+ {[%clk 0:00:13.9]} 17... Kxh7 {[%clk
0:01:38.6]} 18. Rxe5 {[%clk 0:00:07.8]} 18... fxe5 {[%clk 0:01:21.7]} 19. Qh5+
{[%clk 0:00:08.2]} 19... Kg8 {[%clk 0:00:58]} 20. Qg5+ {[%clk 0:00:07.5]} 20...
Kh8 {[%clk 0:00:57.9]} 21. Qh5+ {[%clk 0:00:03.1]} 21... Kg8 {[%clk 0:00:57.3]}
22. Qg5+ {[%clk 0:00:03.3]} 22... Kh8 {[%clk 0:00:57.1]} 23. Qf6+ {[%clk
0:00:03.7]} 23... Kh7 {[%clk 0:00:37.3]} 24. Nf5 {[%clk 0:00:04]} 24... Qxf5
{[%clk 0:00:35.4]} 25. Qxf5+ {[%clk 0:00:04.9]} 25... Kg7 {[%clk 0:00:34.2]} 26.
Qxe5+ {[%clk 0:00:04.1]} 26... f6 {[%clk 0:00:34.6]} 27. Qg3+ {[%clk 0:00:04.1]}
27... Kh6 {[%clk 0:00:31.1]} 28. cxd5 {[%clk 0:00:02.9]} 28... Bxd5 {[%clk
0:00:28.9]} 29. Rd1 {[%clk 0:00:03.5]} 29... Rae8 {[%clk 0:00:24.3]} 30. h3
{[%clk 0:00:03]} 30... Re5 {[%clk 0:00:23.2]} 31. Rd4 {[%clk 0:00:02.8]} 31...
Rg5 {[%clk 0:00:19]} 32. Rh4+ {[%clk 0:00:02.4]} 32... Kg6 {[%clk 0:00:18.9]}
33. Rg4 {[%clk 0:00:03.3]} 33... Rd8 {[%clk 0:00:15.4]} 34. h4 {[%clk
0:00:02.7]} 34... Rxg4 {[%clk 0:00:14.9]} 35. Qxg4+ {[%clk 0:00:03.6]} 35... Kf7
{[%clk 0:00:15.1]} 36. Qd4 {[%clk 0:00:04]} 36... Rd7 {[%clk 0:00:13.3]} 37. Qd2
{[%clk 0:00:03.3]} 37... Bc6 {[%clk 0:00:11.1]} 38. Qc2 {[%clk 0:00:03.4]} 38...
Bd5 {[%clk 0:00:07.9]} 39. Qh7+ {[%clk 0:00:03.8]} 39... Ke6 {[%clk 0:00:07.5]}
40. Qg8+ {[%clk 0:00:04.3]} 40... Ke5 {[%clk 0:00:06.8]} 41. Qe8+ {[%clk
0:00:04.3]} 41... Kd6 {[%clk 0:00:07]} 42. Qf8+ {[%clk 0:00:04.8]} 42... Ke6
{[%clk 0:00:07.2]} 43. h5 {[%clk 0:00:05.3]} 43... Rc7 {[%clk 0:00:06.2]} 44. h6
{[%clk 0:00:05.1]} 44... Rc1+ {[%clk 0:00:05.7]} 45. Kh2 {[%clk 0:00:05.3]}
45... Rc2 {[%clk 0:00:06.1]} 46. h7 {[%clk 0:00:05.1]} 46... Rxf2 {[%clk
0:00:06]} 47. Qg8+ {[%clk 0:00:05.6]} 47... Ke5 {[%clk 0:00:05.6]} 48. Qg3+
{[%clk 0:00:06]} 48... Rf4 {[%clk 0:00:04.7]} 49. h8=Q {[%clk 0:00:06.1]} 1-0

[Event "*** Titled Tuesday Blitz"]
[Site "Chess.com"]
[Date "2020.10.20"]
[Round "5"]
[White "elcandado"]
[Black "Sharpchess22"]
[Result "1-0"]
[WhiteElo "2586"]
[BlackElo "2759"]
[TimeControl "180+1"]
[EndTime "10:57:58 PDT"]
[Termination "elcandado won by checkmate"]

1. d4 {[%clk 0:03:00.9]} 1... Nf6 {[%clk 0:02:03.4]} 2. Bf4 {[%clk 0:02:59.9]}
2... e6 {[%clk 0:02:02.3]} 3. e3 {[%clk 0:02:59.6]} 3... d5 {[%clk 0:01:56.9]}
4. Nd2 {[%clk 0:02:58.4]} 4... Bd6 {[%clk 0:01:57]} 5. Bg3 {[%clk 0:02:58.4]}
5... O-O {[%clk 0:01:55.2]} 6. Bd3 {[%clk 0:02:58.5]} 6... c5 {[%clk 0:01:55.2]}
7. c3 {[%clk 0:02:58.3]} 7... Qc7 {[%clk 0:01:55.4]} 8. dxc5 {[%clk 0:02:58.1]}
8... Qxc5 {[%clk 0:01:54.6]} 9. Ngf3 {[%clk 0:02:56.4]} 9... Nbd7 {[%clk
0:01:54.3]} 10. e4 {[%clk 0:02:56.2]} 10... e5 {[%clk 0:01:40.9]} 11. Qe2 {[%clk
0:02:51.4]} 11... Re8 {[%clk 0:01:40.6]} 12. O-O {[%clk 0:02:46.4]} 12... a6
{[%clk 0:01:34.5]} 13. Rfe1 {[%clk 0:02:45.7]} 13... dxe4 {[%clk 0:01:21.8]} 14.
Bxe4 {[%clk 0:02:17.1]} 14... Qc7 {[%clk 0:01:18.9]} 15. Nc4 {[%clk 0:01:59.5]}
15... Nc5 {[%clk 0:00:49.3]} 16. Bc2 {[%clk 0:01:28.5]} 16... Bg4 {[%clk
0:00:48.8]} 17. Nxd6 {[%clk 0:00:59.9]} 17... Qxd6 {[%clk 0:00:48.6]} 18. Qe3
{[%clk 0:00:50.4]} 18... Bxf3 {[%clk 0:00:48]} 19. Qxf3 {[%clk 0:00:47.8]} 19...
Qc7 {[%clk 0:00:47.2]} 20. Rad1 {[%clk 0:00:42.7]} 20... Ncd7 {[%clk 0:00:43.9]}
21. Qf5 {[%clk 0:00:38.1]} 21... Rad8 {[%clk 0:00:42.3]} 22. h3 {[%clk 0:00:23]}
22... Qb6 {[%clk 0:00:38.1]} 23. Bb3 {[%clk 0:00:21.8]} 23... Qc5 {[%clk
0:00:34.2]} 24. Bh4 {[%clk 0:00:20]} 24... Qc6 {[%clk 0:00:20.5]} 25. Rd2 {[%clk
0:00:13.9]} 25... Nc5 {[%clk 0:00:18.1]} 26. Rxd8 {[%clk 0:00:13.5]} 26... Rxd8
{[%clk 0:00:18.2]} 27. Bxf6 {[%clk 0:00:13.5]} 27... Qxf6 {[%clk 0:00:17.9]} 28.
Qxf6 {[%clk 0:00:13.8]} 28... gxf6 {[%clk 0:00:18.8]} 29. Rd1 {[%clk 0:00:14.1]}
29... Rxd1+ {[%clk 0:00:18.1]} 30. Bxd1 {[%clk 0:00:15]} 30... Nd3 {[%clk
0:00:18.5]} 31. b3 {[%clk 0:00:13.7]} 31... Nc1 {[%clk 0:00:17.9]} 32. Bc2
{[%clk 0:00:10.8]} 32... Nxa2 {[%clk 0:00:17.9]} 33. c4 {[%clk 0:00:09.7]} 33...
Nb4 {[%clk 0:00:16.6]} 34. Be4 {[%clk 0:00:10.1]} 34... b6 {[%clk 0:00:17.1]}
35. Kf1 {[%clk 0:00:10.4]} 35... a5 {[%clk 0:00:16.9]} 36. Ke1 {[%clk
0:00:10.2]} 36... Nc2+ {[%clk 0:00:17.4]} 37. Bxc2 {[%clk 0:00:09.2]} 37... Kg7
{[%clk 0:00:17.3]} 38. Bf5 {[%clk 0:00:08.5]} 38... h6 {[%clk 0:00:18.2]} 39. h4
{[%clk 0:00:08.7]} 39... Kf8 {[%clk 0:00:19.1]} 40. g4 {[%clk 0:00:08.5]} 40...
Ke7 {[%clk 0:00:20]} 41. Kd2 {[%clk 0:00:08.6]} 41... Kd6 {[%clk 0:00:20.3]} 42.
Kc3 {[%clk 0:00:09.1]} 42... Kc5 {[%clk 0:00:20.8]} 43. f3 {[%clk 0:00:09.6]}
43... b5 {[%clk 0:00:21]} 44. cxb5 {[%clk 0:00:09.1]} 44... Kxb5 {[%clk
0:00:21.9]} 45. Bd7+ {[%clk 0:00:08.8]} 45... Kc5 {[%clk 0:00:22.3]} 46. Be8
{[%clk 0:00:08.8]} 46... Kd5 {[%clk 0:00:22.8]} 47. Bxf7+ {[%clk 0:00:08.4]}
47... Kc5 {[%clk 0:00:23.7]} 48. Kd3 {[%clk 0:00:08]} 48... Kb4 {[%clk
0:00:23.7]} 49. Ke4 {[%clk 0:00:08]} 49... Kc3 {[%clk 0:00:24.2]} 50. Kf5 {[%clk
0:00:08.2]} 50... Kd4 {[%clk 0:00:24.8]} 51. Kxf6 {[%clk 0:00:08.3]} 51... e4
{[%clk 0:00:25.4]} 52. fxe4 {[%clk 0:00:08.5]} 52... Kxe4 {[%clk 0:00:26.3]} 53.
g5 {[%clk 0:00:09]} 53... Kf4 {[%clk 0:00:27.2]} 54. gxh6 {[%clk 0:00:08.4]}
54... Kg4 {[%clk 0:00:27.3]} 55. h7 {[%clk 0:00:08.6]} 55... Kf4 {[%clk
0:00:27.7]} 56. h8=Q {[%clk 0:00:08.3]} 56... Ke3 {[%clk 0:00:28.6]} 57. Qg7
{[%clk 0:00:08.3]} 57... Kd3 {[%clk 0:00:28.9]} 58. h5 {[%clk 0:00:08.8]} 58...
Kc3 {[%clk 0:00:29.3]} 59. h6 {[%clk 0:00:09.1]} 59... Kb4 {[%clk 0:00:29.9]}
60. h7 {[%clk 0:00:09.4]} 60... Ka3 {[%clk 0:00:30.8]} 61. h8=Q {[%clk
0:00:09.4]} 61... Kb2 {[%clk 0:00:31.7]} 62. Qb8 {[%clk 0:00:08.9]} 62... Ka3
{[%clk 0:00:32.6]} 63. Qd6+ {[%clk 0:00:08.1]} 63... Ka2 {[%clk 0:00:33.5]} 64.
Qg2+ {[%clk 0:00:07.4]} 64... Kb1 {[%clk 0:00:33.4]} 65. Qd1# {[%clk 0:00:07.6]}
1-0

[Event "*** Titled Tuesday Blitz"]
[Site "Chess.com"]
[Date "2020.10.20"]
[Round "5"]
[White "Semetey"]
[Black "MarkkuH"]
[Result "0-1"]
[WhiteElo "2512"]
[BlackElo "2388"]
[TimeControl "180+1"]
[EndTime "10:58:01 PDT"]
[Termination "MarkkuH won by checkmate"]

1. d4 {[%clk 0:03:00.9]} 1... Nf6 {[%clk 0:02:59.3]} 2. c4 {[%clk 0:03:00.6]}
2... g6 {[%clk 0:02:59.8]} 3. Nc3 {[%clk 0:03:00.5]} 3... Bg7 {[%clk 0:03:00.3]}
4. Bg5 {[%clk 0:02:59.5]} 4... O-O {[%clk 0:02:59.9]} 5. e3 {[%clk 0:02:59.4]}
5... d6 {[%clk 0:02:59.8]} 6. Nf3 {[%clk 0:02:59.6]} 6... c5 {[%clk 0:02:59.3]}
7. Be2 {[%clk 0:02:59.5]} 7... Bf5 {[%clk 0:02:57.5]} 8. O-O {[%clk 0:02:58.4]}
8... Ne4 {[%clk 0:02:53.8]} 9. Nxe4 {[%clk 0:02:54.3]} 9... Bxe4 {[%clk
0:02:53.7]} 10. Qb3 {[%clk 0:02:36.5]} 10... Qc7 {[%clk 0:02:26.7]} 11. Nd2
{[%clk 0:02:16.8]} 11... Bf5 {[%clk 0:02:22.9]} 12. e4 {[%clk 0:02:17.1]} 12...
Bc8 {[%clk 0:02:15.5]} 13. d5 {[%clk 0:02:10.1]} 13... e6 {[%clk 0:02:14.7]} 14.
f4 {[%clk 0:02:02.4]} 14... exd5 {[%clk 0:02:11.9]} 15. cxd5 {[%clk 0:02:03.3]}
15... Nd7 {[%clk 0:02:05.9]} 16. Kh1 {[%clk 0:01:55.9]} 16... Re8 {[%clk
0:02:03.1]} 17. Bd3 {[%clk 0:01:49.2]} 17... b6 {[%clk 0:01:38.7]} 18. Nc4
{[%clk 0:01:31.5]} 18... Bb7 {[%clk 0:01:28.2]} 19. a4 {[%clk 0:01:29.4]} 19...
a6 {[%clk 0:01:19.5]} 20. f5 {[%clk 0:01:25.5]} 20... Rab8 {[%clk 0:01:09.8]}
21. fxg6 {[%clk 0:01:00.6]} 21... hxg6 {[%clk 0:01:09.2]} 22. Bf4 {[%clk
0:00:42.7]} 22... Bf8 {[%clk 0:01:07.1]} 23. e5 {[%clk 0:00:23.3]} 23... dxe5
{[%clk 0:00:55.1]} 24. d6 {[%clk 0:00:22.6]} 24... Qc6 {[%clk 0:00:54.7]} 25.
Rf2 {[%clk 0:00:14.1]} 25... exf4 {[%clk 0:00:53.7]} 26. Bxg6 {[%clk 0:00:14]}
26... Qd5 {[%clk 0:00:41.2]} 27. Rd1 {[%clk 0:00:13.2]} 27... Qe6 {[%clk
0:00:37.7]} 28. Bh5 {[%clk 0:00:13.5]} 28... b5 {[%clk 0:00:36]} 29. Rxf4 {[%clk
0:00:11.4]} 29... bxc4 {[%clk 0:00:33.9]} 30. Qg3+ {[%clk 0:00:11]} 30... Bg7
{[%clk 0:00:33]} 31. Bxf7+ {[%clk 0:00:10.8]} 31... Qxf7 {[%clk 0:00:33.3]} 32.
Rxf7 {[%clk 0:00:11.7]} 32... Kxf7 {[%clk 0:00:33.8]} 33. Rf1+ {[%clk 0:00:11]}
33... Nf6 {[%clk 0:00:33.7]} 34. d7 {[%clk 0:00:10.3]} 34... Red8 {[%clk
0:00:33.3]} 35. Qg5 {[%clk 0:00:09.3]} 35... Rxd7 {[%clk 0:00:31.6]} 36. Qxc5
{[%clk 0:00:09.9]} 36... Rc8 {[%clk 0:00:29.5]} 37. Qh5+ {[%clk 0:00:09.9]}
37... Kg8 {[%clk 0:00:27.8]} 38. Qg6 {[%clk 0:00:10.2]} 38... Rf8 {[%clk
0:00:26.9]} 39. h3 {[%clk 0:00:08.8]} 39... Be4 {[%clk 0:00:26.8]} 40. Qg3
{[%clk 0:00:07.9]} 40... Rd2 {[%clk 0:00:26.3]} 41. Rf2 {[%clk 0:00:07.3]} 41...
Rxf2 {[%clk 0:00:25.6]} 42. Qxf2 {[%clk 0:00:08.2]} 42... Rd8 {[%clk 0:00:21.7]}
43. Qe2 {[%clk 0:00:07.6]} 43... Rd3 {[%clk 0:00:20.7]} 44. Kh2 {[%clk
0:00:06.7]} 44... Rb3 {[%clk 0:00:20.4]} 45. Qxc4+ {[%clk 0:00:06.3]} 45... Bd5
{[%clk 0:00:19.4]} 46. Qc8+ {[%clk 0:00:06.8]} 46... Kh7 {[%clk 0:00:19.9]} 47.
Qxa6 {[%clk 0:00:06.7]} 47... Rxb2 {[%clk 0:00:19.4]} 48. Qd3+ {[%clk
0:00:07.2]} 48... Kg8 {[%clk 0:00:19.1]} 49. h4 {[%clk 0:00:05.2]} 49... Rxg2+
{[%clk 0:00:18.9]} 50. Kh3 {[%clk 0:00:05.7]} 50... Ra2 {[%clk 0:00:18]} 51. Qb5
{[%clk 0:00:05.1]} 51... Ra3+ {[%clk 0:00:18]} 52. Kh2 {[%clk 0:00:04.2]} 52...
Rb3 {[%clk 0:00:18.4]} 53. Qc5 {[%clk 0:00:03.2]} 53... Ng4+ {[%clk 0:00:17.5]}
54. Kg1 {[%clk 0:00:03]} 54... Rb1+ {[%clk 0:00:17.4]} 55. Qc1 {[%clk
0:00:01.3]} 55... Rxc1# {[%clk 0:00:17.4]} 0-1